fUSD/lending_fUSD_20251011
["ID","MTS","AMOUNT","RATE_DAILY","PERIOD"]
[390796957,1760157032794,-151.0,0.00013739,2]
[390796958,1760157032803,-248.68375745,0.00013739,2]
[390796959,1760157032812,-200.0,0.00013739,2]
[390796960,1760157032822,-274.78372458,0.0001375,2]
[390796961,1760157032831,-166.66,0.00014056,2]
[390796962,1760157032840,-167.66,0.00014265,2]
[390796963,1760157032849,-217.56045865,0.00014287,2]
[390796964,1760157032859,-3065.6,0.00014343,2]
[390796965,1760157032868,-150.0,0.00014343,2]
[390796966,1760157032878,-150.0,0.00014494,2]
[390796967,1760157032887,-166.66,0.0001452,2]
[390796968,1760157032896,-255.0,0.00014844,2]
[390796969,1760157032906,-606.0,0.0001488,2]
[390796970,1760157032917,-400.0,0.000149,5]
[390796971,1760157032927,-10637.40728754,0.000149,2]
[390796972,1760157032936,-459.52692496,0.000149,2]
[390796973,1760157032946,-166.66,0.00014984,2]
[390796974,1760157032957,-183.67396996,0.0001499,2]
[390796975,1760157032967,-4292.71319554,0.00015,2]
[390796976,1760157034775,-240.53273848,0.00013732,2]
[390796977,1760157034785,-4522.48094728,0.00015,2]
[390796978,1760157034834,-306.88097256,0.00015,2]
[390797175,1760157039470,-372.24,0.00015,2]
[390797188,1760157039577,-1693.1,0.00015,2]
[390797190,1760157039589,-274.26881639,0.00015,2]
[390797238,1760157040054,-681.1769867,0.00015,2]
[390797241,1760157040066,-11007.01152667,0.00015,2]
[390798830,1760157320985,165.52,0.0001117,2]
[390798831,1760157513693,3834.48,0.0001,2]
[390798832,1760157513715,4000.0,0.0001,2]
[390798833,1760157513736,4000.0,0.0001,2]
[390798834,1760157513756,4000.0,0.0001,2]
[390798835,1760157513777,4000.0,0.0001,2]
[390798836,1760157513797,4000.0,0.0001,2]
[390798837,1760157513817,1000.0,0.0001,2]
[390798838,1760157513837,1000.0,0.0001,2]
[390798839,1760157513858,1000.0,0.0001,2]
[390798840,1760157513882,23165.52,0.0001,2]
[390798841,1760157556238,50000.0,0.0001,2]
[390798842,1760157595652,208.79,6.972e-05,2]
[390798843,1760157595750,208.79,7.338e-05,2]
[390798844,1760157595916,208.79,7.705e-05,2]
[390798845,1760157596416,208.79,8.072e-05,2]
[390798846,1760157596465,208.79,8.439e-05,2]
[390798847,1760157596609,208.79,8.806e-05,2]
[390798848,1760157596737,208.79,9.173e-05,2]
[390798849,1760157596923,208.79,9.54e-05,2]
[390798850,1760157597089,208.79,9.907e-05,2]
[390798851,1760157597145,208.79,0.00010274,2]
[390798852,1760157597236,208.79,0.00010641,2]
[390798853,1760157597295,208.79,0.00011008,2]
[390798854,1760157597561,208.79,0.00011375,2]
[390798855,1760157597679,208.79,0.00011742,2]
[390798856,1760157598083,208.79,0.00012109,2]
[390798857,1760157598281,208.79,0.00012476,2]
[390798858,1760157598465,208.79,0.00012842,2]
[390798859,1760157598662,208.79,0.00013209,2]
[390798860,1760157598863,208.79,0.00013576,2]
[390798861,1760157635947,250.0,0.00013867,7]
[390798862,1760157788048,200.0,0.0001368,2]
[390798863,1760157891371,1635.0,0.00013,2]
[390798864,1760157894946,2751.0,0.00013479,2]
[390798865,1760157925017,970.0,0.00013489,2]
[390798866,1760157940844,2050.74,0.00017,60]
[390798867,1760157996514,343.17,0.0001349,2]
[390798872,1760158172862,250.0,0.00013526,2]
[390798875,1760158231752,-300.0,0.00013714,2]
[390798876,1760158231763,-1200.0,0.00013714,2]
[390798877,1760158231773,-500.0,0.00013715,2]
[390798878,1760158231783,-98.08499622,0.00013715,2]
[390798910,1760158237604,-500.0,0.00013713,2]
[390798911,1760158237614,-500.0,0.00013713,2]
[390798912,1760158237624,-500.0,0.00013713,2]
[390798913,1760158237633,-29.0841863,0.00013713,2]
[390798914,1760158237660,-470.9158137,0.00013713,2]
[390798915,1760158237671,-500.0,0.00013713,2]
[390798916,1760158237680,-307.1062406,0.00013713,2]
[390798917,1760158237690,-163.57825108,0.00013714,2]
[390798918,1760158237700,-189.44281054,0.00013714,2]
[390798919,1760158237710,-234.73778787,0.00013714,2]
[390798920,1760158237719,-500.0,0.00013714,2]
[390798921,1760158237729,-610.73583641,0.00013714,2]
[390798922,1760158237739,-195.0,0.00013715,2]
[390798923,1760158237748,-407.12981289,0.00013715,2]
[390798924,1760158237758,-195.0,0.00013716,2]
[390798925,1760158237768,-2000.0,0.00013716,2]
[390798926,1760158237780,-1103.0,0.00013716,2]
[390798927,1760158237790,-2000.0,0.00013716,2]
[390798928,1760158237803,-2000.0,0.00013717,2]
[390798929,1760158237812,-2831.4,0.00013729,2]
[390798930,1760158237822,-200.0,0.00013936,2]
[390798931,1760158237832,-1852.42,0.00013936,2]
[390798932,1760158237842,-208.79,0.00013943,2]
[390798933,1760158237851,-517.92,0.0001399,2]
[390798934,1760158237861,-9265.96912274,0.00014,2]
[390798935,1760158238003,-820.66686542,0.00014,2]
[390798936,1760158238015,-927.3343624,0.00014,2]
[390798938,1760158239784,-325.42295744,0.00014,2]
[390798939,1760158239972,-526.11562507,0.00014,2]
[390798962,1760158387753,1500.0,0.00013611,2]
[390798963,1760158390809,1000.0,0.00013699,2]
[390798965,1760158546899,171.29,0.00013569,2]
[390798966,1760158776395,1600.0,0.00013367,2]
[390798967,1760158790918,476.65665423,0.00013696,2]
[390798968,1760158812019,150.0,0.000137,2]
[390798969,1760158839592,2000.0,0.00017,60]
[390798970,1760158853910,177.0,0.000137,2]
[390798971,1760158892216,1136.73,0.00013292,2]
[390798972,1760159053728,1000.0,0.000134,2]
[390798973,1760159054035,1000.0,0.000134,2]
[390798974,1760159054172,1000.0,0.000134,2]
[390798975,1760159054379,1000.0,0.000134,2]
[390798976,1760159054779,1000.0,0.000134,2]
[390798977,1760159055196,1000.0,0.000134,2]
[390798978,1760159057380,421.0,0.000134,2]
[390798979,1760159060777,1000.0,0.000134,3]
[390798980,1760159061344,1000.0,0.000134,3]
[390798981,1760159063247,1000.0,0.000134,3]
[390798982,1760159132038,-1200.0,0.00013703,2]
[390798983,1760159132062,-300.0,0.00013703,2]
[390798984,1760159172619,391.87,0.00013207,2]
[390798985,1760159243434,150.0,0.00013071,2]
[390798986,1760159249970,594.77,0.00013176,2]
[390798990,1760159312025,500.0,0.00013702,2]
[390798991,1760159312064,164.31645151,0.00013702,2]
[390798992,1760159312112,343.41994278,0.00013702,2]
[390798993,1760159313070,264.70940285,0.00013702,2]
[390798994,1760159313111,500.0,0.00013702,2]
[390798995,1760159313168,500.0,0.00013702,2]
[390798996,1760159313228,592.24109119,0.00013702,2]
[390798997,1760159313291,500.0,0.00013702,2]
[390798998,1760159313350,500.0,0.00013702,2]
[390798999,1760159313397,500.0,0.00013702,2]
[390799000,1760159313453,500.0,0.00013702,2]
[390799001,1760159313502,500.0,0.00013702,2]
[390799002,1760159313561,500.0,0.00013702,2]
[390799003,1760159313628,500.0,0.00013702,2]
[390799004,1760159313688,500.0,0.00013702,2]
[390799005,1760159314035,500.0,0.00013702,2]
[390799006,1760159314165,500.0,0.00013702,2]
[390799007,1760159314261,500.0,0.00013702,2]
[390799008,1760159314326,500.0,0.00013702,2]
[390799009,1760159369633,500.0,8.219e-05,2]
[390799010,1760159370464,500.0,8.493e-05,2]
[390799011,1760159370669,500.0,8.767e-05,2]
[390799012,1760159371160,500.0,9.041e-05,2]
[390799013,1760159371623,500.0,9.315e-05,2]
[390799014,1760159372123,500.0,9.589e-05,2]
[390799015,1760159372630,500.0,9.863e-05,2]
[390799016,1760159373141,500.0,0.00010137,2]
[390799017,1760159373638,500.0,0.00010411,2]
[390799018,1760159374138,500.0,0.00010685,2]
[390799025,1760159432085,-250.0,0.00013704,2]
[390799026,1760159432095,-2000.0,0.00013704,2]
[390799027,1760159432105,-300.0,0.00013705,2]
[390799028,1760159432114,-358.64334734,0.00013705,2]
[390799029,1760159432125,-2000.0,0.00013706,2]
[390799030,1760159432134,-1200.0,0.00013706,2]
[390799031,1760159432143,-300.0,0.00013706,2]
[390799032,1760159432153,-500.0,0.00013707,2]
[390799033,1760159432165,-500.0,0.00013707,2]
[390799034,1760159432175,-500.0,0.00013707,2]
[390799035,1760159432184,-500.0,0.00013707,2]
[390799036,1760159432193,-297.9844871,0.00013707,2]
[390799037,1760159432203,-300.0,0.00013707,2]
[390799038,1760159432212,-180.0,0.00013713,2]
[390799039,1760159432221,-185.83082832,0.00013713,2]
[390799041,1760159432230,-13760.27,0.00013813,2]
[390799043,1760159432239,-800.34040221,0.00013815,2]
[390799045,1760159432249,-2155.23968625,0.0001386,2]
[390799047,1760159432261,-3578.69524375,0.0001386,2]
[390799048,1760159432271,-5733.93493,0.0001386,2]
[390799050,1760159432280,-5733.93493,0.0001387,2]
[390799053,1760159432289,-5733.93494,0.0001387,2]
[390799056,1760159432299,-326.928903,0.0001387,2]
[390799058,1760159432308,-326.928903,0.0001387,2]
[390799059,1760159432317,-151.0,0.0001387,2]
[390799061,1760159432327,-151.0,0.0001387,2]
[390799063,1760159432336,-326.928903,0.0001387,2]
[390799065,1760159432346,-151.0,0.0001387,2]
[390799066,1760159432355,-326.928903,0.0001387,2]
[390799068,1760159432364,-151.0,0.0001387,2]
[390799070,1760159432375,-151.0,0.0001387,2]
[390799072,1760159432384,-594.499149,0.0001387,2]
[390799073,1760159432393,-151.0,0.0001387,2]
[390799074,1760159432403,-594.499149,0.0001387,2]
[390799075,1760159432413,-154.231667,0.0001387,2]
[390799076,1760159432423,-594.499149,0.0001387,2]
[390799077,1760159432432,-154.231667,0.0001387,2]
[390799078,1760159432441,-151.0,0.0001387,2]
[390799079,1760159432450,-594.499149,0.0001387,2]
[390799080,1760159432459,-154.231667,0.0001387,2]
[390799081,1760159432468,-151.0,0.0001387,2]
[390799082,1760159432477,-151.0,0.0001387,2]
[390799083,1760159432487,-154.231667,0.0001387,2]
[390799084,1760159432496,-151.0,0.0001387,2]
[390799085,1760159432505,-151.0,0.0001387,2]
[390799086,1760159432515,-151.0,0.0001387,2]
[390799087,1760159432525,-151.0,0.0001387,2]
[390799088,1760159432534,-151.0,0.0001387,2]
[390799089,1760159432543,-151.0,0.0001387,2]
[390799090,1760159432552,-205.846432,0.0001387,2]
[390799091,1760159432561,-519.711486,0.0001387,2]
[390799092,1760159432571,-205.846432,0.0001387,2]
[390799093,1760159432580,-2509.618811,0.0001387,2]
[390799094,1760159432589,-519.711486,0.0001387,2]
[390799095,1760159432599,-205.846432,0.0001387,2]
[390799096,1760159432608,-151.0,0.0001387,2]
[390799097,1760159432617,-2509.618811,0.0001387,2]
[390799098,1760159432628,-519.711486,0.0001387,2]
[390799099,1760159432637,-205.846432,0.0001387,2]
[390799100,1760159432646,-151.0,0.0001387,2]
[390799101,1760159432655,-2509.618811,0.0001387,2]
[390799102,1760159432664,-519.711486,0.0001387,2]
[390799103,1760159432673,-151.0,0.0001387,2]
[390799104,1760159432683,-151.0,0.0001387,2]
[390799105,1760159432692,-2509.618811,0.0001387,2]
[390799106,1760159432701,-460.252661,0.0001387,2]
[390799107,1760159432710,-182.082404,0.0001387,2]
[390799108,1760159432720,-151.0,0.0001387,2]
[390799109,1760159432729,-460.252661,0.0001387,2]
[390799110,1760159432738,-151.0,0.0001387,2]
[390799111,1760159432747,-460.252661,0.0001387,2]
[390799112,1760159432757,-460.252661,0.0001387,2]
[390799113,1760159432766,-154.109044,0.0001387,2]
[390799114,1760159432775,-151.0,0.0001387,2]
[390799115,1760159432784,-154.109044,0.0001387,2]
[390799116,1760159432794,-151.0,0.0001387,2]
[390799117,1760159432803,-154.109044,0.0001387,2]
[390799118,1760159432812,-151.0,0.0001387,2]
[390799119,1760159432821,-154.109044,0.0001387,2]
[390799120,1760159432831,-151.0,0.0001387,2]
[390799121,1760159432840,-151.0,0.0001387,2]
[390799122,1760159432851,-151.0,0.0001387,2]
[390799123,1760159432860,-173.417301,0.0001387,2]
[390799124,1760159432869,-151.0,0.0001387,2]
[390799125,1760159432879,-173.417301,0.0001387,2]
[390799126,1760159432888,-151.0,0.0001387,2]
[390799127,1760159432897,-173.417301,0.0001387,2]
[390799128,1760159432906,-290.562153,0.0001387,2]
[390799129,1760159432916,-173.417301,0.0001387,2]
[390799130,1760159432925,-173.417301,0.0001387,2]
[390799131,1760159432935,-173.417301,0.0001387,2]
[390799132,1760159432944,-151.0,0.0001387,2]
[390799133,1760159432953,-173.417301,0.0001387,2]
[390799134,1760159432962,-151.0,0.0001387,2]
[390799135,1760159432971,-151.0,0.0001387,2]
[390799136,1760159432980,-213.716578,0.0001387,2]
[390799137,1760159432990,-173.417301,0.0001387,2]
[390799138,1760159432999,-173.417301,0.0001387,2]
[390799139,1760159433008,-173.417301,0.0001387,2]
[390799140,1760159433018,-173.417301,0.0001387,2]
[390799141,1760159433028,-151.0,0.0001387,2]
[390799142,1760159433037,-173.417301,0.0001387,2]
[390799143,1760159433047,-151.0,0.0001387,2]
[390799144,1760159433056,-151.0,0.0001387,2]
[390799145,1760159433066,-151.0,0.0001387,2]
[390799146,1760159433075,-151.0,0.0001387,2]
[390799147,1760159433084,-151.0,0.0001387,2]
[390799148,1760159433093,-151.0,0.0001387,2]
[390799149,1760159433103,-151.0,0.0001387,2]
[390799150,1760159433112,-151.0,0.0001387,2]
[390799151,1760159433121,-151.0,0.0001387,2]
[390799152,1760159433132,-151.0,0.0001387,2]
[390799153,1760159433142,-151.0,0.0001387,2]
[390799154,1760159433151,-151.0,0.0001387,2]
[390799155,1760159433160,-151.0,0.0001387,2]
[390799156,1760159433169,-151.0,0.0001387,2]
[390799157,1760159433181,-151.0,0.0001387,2]
[390799158,1760159433191,-151.0,0.0001387,2]
[390799159,1760159433202,-151.0,0.0001387,2]
[390799160,1760159433215,-276.209474,0.0001387,2]
[390799161,1760159433227,-265.827074,0.0001387,2]
[390799162,1760159433238,-151.0,0.0001387,2]
[390799163,1760159433252,-151.0,0.0001387,2]
[390799164,1760159433261,-151.0,0.0001387,2]
[390799165,1760159433270,-151.0,0.0001387,2]
[390799166,1760159433279,-151.0,0.0001387,2]
[390799167,1760159433289,-151.0,0.0001387,2]
[390799168,1760159433298,-151.0,0.0001387,2]
[390799169,1760159433307,-151.0,0.0001387,2]
[390799170,1760159433317,-151.0,0.0001387,2]
[390799171,1760159433326,-151.0,0.0001387,2]
[390799172,1760159433338,-151.0,0.0001387,2]
[390799173,1760159433347,-151.0,0.0001387,2]
[390799174,1760159433357,-151.0,0.0001387,2]
[390799175,1760159433367,-151.0,0.0001387,2]
[390799176,1760159433376,-151.0,0.0001387,2]
[390799177,1760159433386,-151.0,0.0001387,2]
[390799178,1760159433395,-151.0,0.0001387,2]
[390799179,1760159433405,-151.0,0.0001387,2]
[390799180,1760159433414,-151.0,0.0001387,2]
[390799181,1760159433423,-151.0,0.0001387,2]
[390799182,1760159433433,-151.0,0.0001387,2]
[390799183,1760159433442,-151.0,0.0001387,2]
[390799184,1760159433452,-151.0,0.0001387,2]
[390799185,1760159433461,-151.0,0.0001387,2]
[390799186,1760159433470,-151.0,0.0001387,2]
[390799187,1760159433479,-151.0,0.0001387,2]
[390799188,1760159433489,-181.948694,0.0001387,2]
[390799189,1760159433498,-151.0,0.0001387,2]
[390799190,1760159433507,-151.0,0.0001387,2]
[390799191,1760159433517,-151.0,0.0001387,2]
[390799192,1760159433528,-151.0,0.0001387,2]
[390799193,1760159433537,-151.0,0.0001387,2]
[390799194,1760159433547,-151.0,0.0001387,2]
[390799195,1760159433558,-151.0,0.0001387,2]
[390799196,1760159433568,-151.0,0.0001387,2]
[390799197,1760159433577,-151.0,0.0001387,2]
[390799198,1760159433586,-151.0,0.0001387,2]
[390799199,1760159433595,-151.0,0.0001387,2]
[390799200,1760159433604,-151.0,0.0001387,2]
[390799201,1760159433613,-151.0,0.0001387,2]
[390799202,1760159433623,-151.0,0.0001387,2]
[390799203,1760159433633,-157.239913,0.0001387,2]
[390799204,1760159433642,-151.0,0.0001387,2]
[390799205,1760159433651,-151.0,0.0001387,2]
[390799206,1760159433661,-151.0,0.0001387,2]
[390799207,1760159433670,-595.955662,0.0001387,2]
[390799208,1760159433679,-151.0,0.0001387,2]
[390799209,1760159433688,-151.354691,0.0001387,2]
[390799210,1760159433697,-595.955662,0.0001387,2]
[390799211,1760159433706,-595.955662,0.0001387,2]
[390799212,1760159433715,-151.0,0.0001387,2]
[390799213,1760159433725,-151.0,0.0001387,2]
[390799214,1760159433734,-151.0,0.0001387,2]
[390799215,1760159433744,-595.955662,0.0001387,2]
[390799216,1760159433753,-219.320456,0.0001387,2]
[390799217,1760159433762,-151.0,0.0001387,2]
[390799218,1760159433771,-151.0,0.0001387,2]
[390799219,1760159433780,-595.955662,0.0001387,2]
[390799220,1760159433789,-595.955662,0.0001387,2]
[390799221,1760159433798,-151.0,0.0001387,2]
[390799222,1760159433807,-151.0,0.0001387,2]
[390799223,1760159433816,-151.0,0.0001387,2]
[390799224,1760159433826,-595.955662,0.0001387,2]
[390799225,1760159433838,-151.0,0.0001387,2]
[390799226,1760159433847,-595.955662,0.0001387,2]
[390799227,1760159433859,-223.590027,0.0001387,2]
[390799228,1760159433869,-154.02683,0.0001387,2]
[390799229,1760159433880,-151.0,0.0001387,2]
[390799230,1760159433890,-595.955662,0.0001387,2]
[390799231,1760159433900,-223.590027,0.0001387,2]
[390799232,1760159433917,-151.0,0.0001387,2]
[390799233,1760159433929,-223.590027,0.0001387,2]
[390799234,1760159433941,-595.955662,0.0001387,2]
[390799235,1760159433952,-151.0,0.0001387,2]
[390799236,1760159433964,-595.955662,0.0001387,2]
[390799237,1760159433974,-151.0,0.0001387,2]
[390799238,1760159433984,-154.02683,0.0001387,2]
[390799239,1760159433994,-223.590027,0.0001387,2]
[390799240,1760159434004,-151.0,0.0001387,2]
[390799241,1760159434014,-595.955662,0.0001387,2]
[390799242,1760159434024,-151.0,0.0001387,2]
[390799243,1760159434034,-223.590027,0.0001387,2]
[390799244,1760159434042,-151.0,0.0001387,2]
[390799245,1760159434051,-151.0,0.0001387,2]
[390799246,1760159434061,-223.590027,0.0001387,2]
[390799247,1760159434070,-151.0,0.0001387,2]
[390799248,1760159434080,-151.0,0.0001387,2]
[390799249,1760159434091,-223.590027,0.0001387,2]
[390799250,1760159434100,-154.02683,0.0001387,2]
[390799251,1760159434109,-151.0,0.0001387,2]
[390799252,1760159434119,-223.590027,0.0001387,2]
[390799253,1760159434130,-223.590027,0.0001387,2]
[390799254,1760159434139,-223.590027,0.0001387,2]
[390799255,1760159434148,-154.02683,0.0001387,2]
[390799256,1760159434158,-223.590027,0.0001387,2]
[390799257,1760159434167,-151.0,0.0001387,2]
[390799258,1760159434177,-223.590027,0.0001387,2]
[390799259,1760159434187,-151.0,0.0001387,2]
[390799260,1760159434197,-158.358823,0.0001387,2]
[390799261,1760159434207,-151.0,0.0001387,2]
[390799262,1760159434217,-151.0,0.0001387,2]
[390799263,1760159434227,-151.0,0.0001387,2]
[390799264,1760159434238,-151.0,0.0001387,2]
[390799265,1760159434248,-151.0,0.0001387,2]
[390799266,1760159434257,-151.0,0.0001387,2]
[390799267,1760159434267,-151.0,0.0001387,2]
[390799268,1760159434275,-151.0,0.0001387,2]
[390799269,1760159434284,-151.0,0.0001387,2]
[390799270,1760159434293,-151.0,0.0001387,2]
[390799271,1760159434303,-151.0,0.0001387,2]
[390799272,1760159434312,-151.0,0.0001387,2]
[390799273,1760159434322,-151.0,0.0001387,2]
[390799274,1760159434331,-151.0,0.0001387,2]
[390799275,1760159434341,-151.0,0.0001387,2]
[390799276,1760159434350,-151.0,0.0001387,2]
[390799277,1760159434359,-225.675395,0.0001387,2]
[390799278,1760159434368,-273.525332,0.0001387,2]
[390799279,1760159434378,-291.20917,0.0001387,2]
[390799280,1760159434387,-151.0,0.0001387,2]
[390799281,1760159434397,-151.0,0.0001387,2]
[390799282,1760159434406,-151.0,0.0001387,2]
[390799283,1760159434415,-151.0,0.0001387,2]
[390799284,1760159434424,-166.666915,0.0001387,2]
[390799285,1760159434433,-151.0,0.0001387,2]
[390799286,1760159434442,-151.0,0.0001387,2]
[390799287,1760159434451,-151.0,0.0001387,2]
[390799288,1760159434462,-151.0,0.0001387,2]
[390799289,1760159434471,-151.0,0.0001387,2]
[390799290,1760159434482,-193.838323,0.0001387,2]
[390799291,1760159434491,-285.449962,0.0001387,2]
[390799292,1760159434500,-285.449962,0.0001387,2]
[390799293,1760159434510,-285.449962,0.0001387,2]
[390799294,1760159434519,-285.449962,0.0001387,2]
[390799295,1760159434530,-285.449962,0.0001387,2]
[390799296,1760159434542,-285.449962,0.0001387,2]
[390799297,1760159434552,-285.449962,0.0001387,2]
[390799298,1760159434560,-285.449962,0.0001387,2]
[390799299,1760159434569,-285.449962,0.0001387,2]
[390799300,1760159434578,-285.449962,0.0001387,2]
[390799301,1760159434587,-285.449962,0.0001387,2]
[390799302,1760159434596,-285.449962,0.0001387,2]
[390799303,1760159434605,-151.0,0.0001387,2]
[390799304,1760159434614,-151.0,0.0001387,2]
[390799305,1760159434623,-151.0,0.0001387,2]
[390799306,1760159434633,-151.0,0.0001387,2]
[390799307,1760159434642,-151.0,0.0001387,2]
[390799308,1760159434652,-151.0,0.0001387,2]
[390799309,1760159434661,-151.0,0.0001387,2]
[390799310,1760159434670,-151.0,0.0001387,2]
[390799311,1760159434679,-151.0,0.0001387,2]
[390799312,1760159434689,-151.0,0.0001387,2]
[390799313,1760159434698,-179.754452,0.0001387,2]
[390799314,1760159434707,-151.0,0.0001387,2]
[390799315,1760159434716,-151.0,0.0001387,2]
[390799316,1760159434726,-151.0,0.0001387,2]
[390799317,1760159434735,-151.0,0.0001387,2]
[390799318,1760159434744,-151.0,0.0001387,2]
[390799319,1760159434753,-151.0,0.0001387,2]
[390799320,1760159434762,-151.0,0.0001387,2]
[390799321,1760159434771,-3111.553796,0.0001387,2]
[390799322,1760159434783,-151.0,0.0001387,2]
[390799323,1760159434798,-151.0,0.0001387,2]
[390799324,1760159434818,-1942.37868089,0.0001387,2]
[390799325,1760159434862,-1169.17511511,0.0001387,2]
[390799326,1760159434871,-151.0,0.0001387,2]
[390799327,1760159434882,-3111.553796,0.0001387,2]
[390799328,1760159434892,-151.0,0.0001387,2]
[390799329,1760159434904,-3111.553796,0.0001387,2]
[390799330,1760159434914,-151.0,0.0001387,2]
[390799331,1760159434925,-151.0,0.0001387,2]
[390799332,1760159434934,-151.0,0.0001387,2]
[390799333,1760159434943,-151.0,0.0001387,2]
[390799334,1760159434952,-3111.553796,0.0001387,2]
[390799335,1760159434961,-151.0,0.0001387,2]
[390799336,1760159434970,-3111.553796,0.0001387,2]
[390799337,1760159434979,-3111.553796,0.0001387,2]
[390799338,1760159434989,-3111.553796,0.0001387,2]
[390799339,1760159434998,-151.0,0.0001387,2]
[390799340,1760159435007,-3111.553796,0.0001387,2]
[390799341,1760159435016,-151.0,0.0001387,2]
[390799342,1760159435026,-151.0,0.0001387,2]
[390799343,1760159435035,-3111.553796,0.0001387,2]
[390799344,1760159435044,-151.0,0.0001387,2]
[390799345,1760159435054,-151.0,0.0001387,2]
[390799346,1760159435063,-151.0,0.0001387,2]
[390799347,1760159435072,-3111.553796,0.0001387,2]
[390799348,1760159435082,-151.0,0.0001387,2]
[390799349,1760159435093,-151.0,0.0001387,2]
[390799350,1760159435102,-3111.553796,0.0001387,2]
[390799351,1760159435111,-151.0,0.0001387,2]
[390799352,1760159435121,-151.0,0.0001387,2]
[390799353,1760159435131,-151.0,0.0001387,2]
[390799354,1760159435140,-151.0,0.0001387,2]
[390799355,1760159435149,-3111.553796,0.0001387,2]
[390799356,1760159435159,-151.0,0.0001387,2]
[390799357,1760159435168,-3111.553796,0.0001387,2]
[390799358,1760159435177,-151.0,0.0001387,2]
[390799359,1760159435185,-3111.553796,0.0001387,2]
[390799360,1760159435195,-151.0,0.0001387,2]
[390799361,1760159435205,-996.06523983,0.0001387,2]
[390799362,1760159435218,-366.85632861,0.0001387,2]
[390799363,1760159435229,-338.88,0.0001387,2]
[390799394,1760159438434,-739.528595,0.0001387,2]
[390799396,1760159438446,-670.22363256,0.0001387,2]
[390799398,1760159438455,-151.0,0.0001387,2]
[390799400,1760159438464,-151.0,0.0001387,2]
[390799401,1760159438473,-151.0,0.0001387,2]
[390799403,1760159438485,-151.0,0.0001387,2]
[390799405,1760159438494,-151.0,0.0001387,2]
[390799407,1760159438503,-151.0,0.0001387,2]
[390799409,1760159438513,-151.0,0.0001387,2]
[390799411,1760159438522,-151.0,0.0001387,2]
[390799413,1760159438532,-25.26226744,0.0001387,2]
[390799520,1760159439930,-590.39395995,0.00013703,2]
[390799522,1760159439939,-125.73773256,0.0001387,2]
[390799524,1760159439949,-152.913394,0.0001387,2]
[390799526,1760159439958,-275.024509,0.0001387,2]
[390799528,1760159439967,-1117.93040449,0.0001388,2]
[390799536,1760159440034,-624.57041502,0.0001388,2]
[390799539,1760159440050,-3991.43411049,0.0001388,2]
[390799541,1760159440060,-5733.93493,0.0001388,2]
[390799543,1760159440069,-326.928903,0.0001388,2]
[390799545,1760159440078,-326.928903,0.0001388,2]
[390799547,1760159440087,-151.0,0.0001388,2]
[390799549,1760159440097,-326.928903,0.0001388,2]
[390799551,1760159440106,-151.0,0.0001388,2]
[390799553,1760159440115,-314.43570393,0.0001388,2]